fUSD/lending_fUSD_20240814
["ID","MTS","AMOUNT","RATE_DAILY","PERIOD"]
[334832103,1723605126454,-500.0,0.0001589,2]
[334832104,1723605126464,-500.0,0.0001589,2]
[334832105,1723605126475,-649.52,0.0001589,2]
[334832106,1723605126484,-1290.02,0.0001589,2]
[334832107,1723605126494,-3127.31,0.0001589,2]
[334832108,1723605126503,-1748.45,0.0001589,2]
[334832109,1723605126514,-793.31,0.0001589,2]
[334832110,1723605126524,-858.47,0.0001589,2]
[334832111,1723605126534,-500.0,0.0001589,2]
[334832112,1723605126543,-609.62,0.0001589,2]
[334832113,1723605126554,-500.0,0.0001589,2]
[334832114,1723605126563,-500.0,0.0001589,2]
[334832115,1723605126572,-500.0,0.0001589,2]
[334832116,1723605126582,-500.0,0.0001589,2]
[334832117,1723605126592,-1268.63,0.0001589,2]
[334832118,1723605126601,-1098.68,0.0001589,2]
[334832119,1723605126611,-500.0,0.0001589,2]
[334832120,1723605126620,-500.0,0.0001589,2]
[334832121,1723605126630,-500.0,0.0001589,2]
[334832122,1723605126639,-500.0,0.0001589,2]
[334832123,1723605126649,-1442.17,0.0001589,2]
[334832124,1723605126658,-500.0,0.0001589,2]
[334832125,1723605126668,-2112.81,0.0001589,2]
[334832126,1723605126677,-2201.12,0.0001589,2]
[334832127,1723605126687,-935.54,0.0001589,2]
[334832128,1723605126697,-500.0,0.0001589,2]
[334832129,1723605126706,-702.32,0.0001589,2]
[334832130,1723605126715,-448.9344123,0.0001589,2]
[334832131,1723605126724,-647.97,0.0001589,2]
[334832132,1723605126733,-507.01,0.0001589,2]
[334832133,1723605126743,-500.0,0.0001589,2]
[334832134,1723605126752,-1346.58,0.0001589,2]
[334832135,1723605126762,-2514.69,0.0001589,2]
[334832136,1723605126771,-500.0,0.0001589,2]
[334832137,1723605126781,-500.0,0.0001589,2]
[334832138,1723605126790,-3141.73,0.0001589,2]
[334832139,1723605126799,-1144.08,0.0001589,2]
[334832140,1723605126809,-500.0,0.0001589,2]
[334832141,1723605126818,-1273.67,0.0001589,2]
[334832142,1723605126827,-500.0,0.0001589,2]
[334832143,1723605126836,-2542.61,0.0001589,2]
[334832144,1723605126845,-500.0,0.0001589,2]
[334832145,1723605126855,-500.0,0.0001589,2]
[334832146,1723605126865,-500.0,0.0001589,2]
[334832147,1723605126874,-500.0,0.0001589,2]
[334832148,1723605126886,-2720.24,0.0001589,2]
[334832149,1723605126895,-1731.7,0.0001589,2]
[334832150,1723605126905,-743.4,0.0001589,2]
[334832151,1723605126914,-1478.0,0.0001589,2]
[334832152,1723605126923,-500.0,0.0001589,2]
[334832153,1723605126933,-500.0,0.0001589,2]
[334832154,1723605126942,-500.0,0.0001589,2]
[334832155,1723605126952,-500.0,0.0001589,2]
[334832156,1723605126961,-3406.91,0.0001589,2]
[334832157,1723605126971,-500.0,0.0001589,2]
[334832158,1723605126980,-597.7,0.0001589,2]
[334832159,1723605126990,-516.34783989,0.0001589,2]
[334832160,1723605126999,-3422.23,0.0001589,2]
[334832161,1723605127008,-394.34581571,0.0001589,2]
[334832162,1723605127018,-2279.94,0.0001589,2]
[334832163,1723605127027,-1289.81,0.0001589,2]
[334832164,1723605127037,-500.0,0.0001589,2]
[334832165,1723605127046,-665.5,0.0001589,2]
[334832166,1723605127055,-1427.7,0.0001589,2]
[334832167,1723605127065,-500.0,0.0001589,2]
[334832168,1723605127075,-2265.5,0.0001589,2]
[334832169,1723605127085,-1145.17,0.0001589,2]
[334832170,1723605127095,-3219.63,0.0001589,2]
[334832171,1723605127104,-500.0,0.0001589,2]
[334832172,1723605127114,-1191.07,0.0001589,2]
[334832173,1723605127124,-500.0,0.0001589,2]
[334832174,1723605127134,-602.6,0.0001589,2]
[334832175,1723605127144,-1014.7,0.0001589,2]
[334832176,1723605127153,-500.0,0.0001589,2]
[334832177,1723605127162,-500.0,0.0001589,2]
[334832178,1723605127172,-2275.75,0.0001589,2]
[334832179,1723605127181,-500.0,0.0001589,2]
[334832180,1723605127191,-500.0,0.0001589,2]
[334832181,1723605127200,-500.0,0.0001589,2]
[334832182,1723605127209,-630.85,0.0001589,2]
[334832183,1723605127218,-3552.25,0.0001589,2]
[334832184,1723605127227,-876.93,0.0001589,2]
[334832185,1723605127237,-4102.14,0.0001589,2]
[334832186,1723605127246,-1191.95,0.0001589,2]
[334832187,1723605127259,-996.84,0.0001589,2]
[334832188,1723605127268,-500.0,0.0001589,2]
[334832189,1723605127277,-3880.01,0.0001589,2]
[334832190,1723605127286,-500.0,0.0001589,2]
[334832191,1723605127295,-646.16,0.0001589,2]
[334832192,1723605127304,-1159.56,0.0001589,2]
[334832193,1723605127313,-2612.35,0.0001589,2]
[334832194,1723605127323,-769.7,0.0001589,2]
[334832195,1723605127332,-589.53,0.0001589,2]
[334832196,1723605127342,-1492.63,0.0001589,2]
[334832197,1723605127354,-1127.31,0.0001589,2]
[334832198,1723605127364,-1344.56,0.0001589,2]
[334832199,1723605127373,-582.87,0.0001589,2]
[334832200,1723605127382,-500.0,0.0001589,2]
[334832201,1723605127392,-955.28,0.0001589,2]
[334832202,1723605127401,-500.0,0.0001589,2]
[334832203,1723605127410,-1804.03,0.0001589,2]
[334832204,1723605127420,-1584.08,0.0001589,2]
[334832205,1723605127430,-2222.02,0.0001589,2]
[334832206,1723605127440,-500.0,0.0001589,2]
[334832207,1723605127450,-626.87,0.0001589,2]
[334832208,1723605127459,-2565.94,0.0001589,2]
[334832209,1723605127467,-1633.43,0.0001589,2]
[334832210,1723605127477,-1002.48,0.0001589,2]
[334832211,1723605127486,-500.0,0.0001589,2]
[334832212,1723605127495,-1239.94,0.0001589,2]
[334832213,1723605127505,-1158.93,0.0001589,2]
[334832214,1723605127514,-1602.88,0.0001589,2]
[334832215,1723605127523,-985.46,0.0001589,2]
[334832216,1723605127533,-500.0,0.0001589,2]
[334832217,1723605127542,-500.0,0.0001589,2]
[334832218,1723605127551,-601.898441,0.0001589,2]
[334832219,1723605127561,-3593.7,0.0001589,2]
[334832220,1723605127570,-1370.77,0.0001589,2]
[334832221,1723605127579,-737.54,0.0001589,2]
[334832222,1723605127588,-953.98,0.0001589,2]
[334832223,1723605127597,-500.0,0.0001589,2]
[334832224,1723605127607,-1630.24,0.0001589,2]
[334832225,1723605127616,-1897.14,0.0001589,2]
[334832226,1723605127625,-880.42,0.0001589,2]
[334832227,1723605127635,-500.0,0.0001589,2]
[334832228,1723605127644,-557.05,0.0001589,2]
[334832229,1723605127654,-875.47,0.0001589,2]
[334832230,1723605127663,-500.0,0.0001589,2]
[334832231,1723605127672,-500.0,0.0001589,2]
[334832232,1723605127682,-1181.63,0.0001589,2]
[334832233,1723605127691,-500.0,0.0001589,2]
[334832234,1723605127699,-1030.34,0.0001589,2]
[334832235,1723605127709,-2181.86,0.0001589,2]
[334832236,1723605127718,-2025.74,0.0001589,2]
[334832237,1723605127727,-500.0,0.0001589,2]
[334832238,1723605127736,-1413.32,0.0001589,2]
[334832239,1723605127745,-910.05,0.0001589,2]
[334832240,1723605127755,-529.76,0.0001589,2]
[334832241,1723605127764,-503.14,0.0001589,2]
[334832242,1723605127774,-1733.06,0.0001589,2]
[334832243,1723605127783,-868.31,0.0001589,2]
[334832244,1723605127792,-2269.46,0.0001589,2]
[334832245,1723605127801,-522.67,0.0001589,2]
[334832246,1723605127811,-500.0,0.0001589,2]
[334832247,1723605127820,-510.64,0.0001589,2]
[334832248,1723605127829,-881.51,0.0001589,2]
[334832249,1723605127839,-706.73,0.0001589,2]
[334832250,1723605127848,-1396.78,0.0001589,2]
[334832251,1723605127858,-772.89,0.0001589,2]
[334832252,1723605127867,-500.0,0.0001589,2]
[334832253,1723605127880,-2133.37,0.0001589,2]
[334832254,1723605127894,-500.0,0.0001589,2]
[334832255,1723605127909,-500.0,0.0001589,2]
[334832256,1723605127921,-500.0,0.0001589,2]
[334832257,1723605127934,-1205.91,0.0001589,2]
[334832258,1723605127948,-929.46,0.0001589,2]
[334832259,1723605127962,-500.0,0.0001589,2]
[334832260,1723605127975,-500.0,0.0001589,2]
[334832261,1723605127989,-613.02,0.0001589,2]
[334832262,1723605128004,-2071.92,0.0001589,2]
[334832263,1723605128019,-849.35,0.0001589,2]
[334832264,1723605128032,-500.0,0.0001589,2]
[334832265,1723605128045,-500.0,0.0001589,2]
[334832266,1723605128060,-1149.19,0.0001589,2]
[334832267,1723605128074,-519.43,0.0001589,2]
[334832268,1723605128086,-816.63,0.0001589,2]
[334832269,1723605128099,-1338.21,0.0001589,2]
[334832270,1723605128112,-748.99,0.0001589,2]
[334832271,1723605128125,-500.0,0.0001589,2]
[334832272,1723605128139,-500.0,0.0001589,2]
[334832273,1723605128154,-699.54,0.0001589,2]
[334832274,1723605128169,-1022.75,0.0001589,2]
[334832275,1723605128183,-523.86,0.0001589,2]
[334832276,1723605128194,-500.0,0.0001589,2]
[334832277,1723605128205,-612.84,0.0001589,2]
[334832278,1723605128217,-500.0,0.0001589,2]
[334832279,1723605128231,-1197.98,0.0001589,2]
[334832280,1723605128245,-919.6,0.0001589,2]
[334832281,1723605128256,-1287.56,0.0001589,2]
[334832282,1723605128270,-500.0,0.0001589,2]
[334832283,1723605128283,-503.29,0.0001589,2]
[334832284,1723605128296,-500.0,0.0001589,2]
[334832285,1723605128307,-1236.66,0.0001589,2]
[334832286,1723605128320,-1706.6,0.0001589,2]
[334832287,1723605128332,-500.0,0.0001589,2]
[334832288,1723605128344,-727.3,0.0001589,2]
[334832289,1723605128360,-500.0,0.0001589,2]
[334832290,1723605128373,-536.46,0.0001589,2]
[334832291,1723605128385,-500.0,0.0001589,2]
[334832292,1723605128398,-721.37,0.0001589,2]
[334832293,1723605128410,-2182.15,0.0001589,2]
[334832294,1723605128424,-1786.37,0.0001589,2]
[334832295,1723605128436,-2427.03,0.0001589,2]
[334832296,1723605128449,-680.94,0.0001589,2]
[334832297,1723605128461,-500.0,0.0001589,2]
[334832298,1723605128473,-771.59,0.0001589,2]
[334832299,1723605128486,-1367.74,0.0001589,2]
[334832300,1723605128498,-500.0,0.0001589,2]
[334832301,1723605128510,-1950.59,0.0001589,2]
[334832302,1723605128522,-1130.15,0.0001589,2]
[334832303,1723605128533,-750.13,0.0001589,2]
[334832304,1723605128545,-1812.05,0.0001589,2]
[334832305,1723605128558,-500.0,0.0001589,2]
[334832306,1723605128570,-576.07,0.0001589,2]
[334832307,1723605128583,-1411.86,0.0001589,2]
[334832308,1723605128595,-500.0,0.0001589,2]
[334832309,1723605128608,-672.92,0.0001589,2]
[334832310,1723605128620,-2545.33,0.0001589,2]
[334832311,1723605128633,-500.0,0.0001589,2]
[334832312,1723605128645,-500.0,0.0001589,2]
[334832313,1723605128657,-500.0,0.0001589,2]
[334832314,1723605128669,-500.0,0.0001589,2]
[334832315,1723605128681,-541.3,0.0001589,2]
[334832316,1723605128694,-500.0,0.0001589,2]
[334832317,1723605128706,-872.09,0.0001589,2]
[334832318,1723605128718,-6288.73,0.0001589,2]
[334832319,1723605128731,-500.0,0.0001589,2]
[334832320,1723605128744,-500.0,0.0001589,2]
[334832321,1723605128755,-500.0,0.0001589,2]
[334832322,1723605128768,-1035.1,0.0001589,2]
[334832323,1723605128780,-500.0,0.0001589,2]
[334832324,1723605128792,-1340.06,0.0001589,2]
[334832325,1723605128804,-1609.25,0.0001589,2]
[334832326,1723605128816,-2362.09,0.0001589,2]
[334832327,1723605128829,-500.0,0.0001589,2]
[334832328,1723605128841,-1034.45,0.0001589,2]
[334832329,1723605128853,-902.63,0.0001589,2]
[334832330,1723605128865,-557.88,0.0001589,2]
[334832331,1723605128876,-943.38,0.0001589,2]
[334832332,1723605128891,-3295.82,0.0001589,2]
[334832333,1723605128904,-500.0,0.0001589,2]
[334832334,1723605128916,-995.76,0.0001589,2]
[334832335,1723605128928,-500.0,0.0001589,2]
[334832336,1723605128941,-500.0,0.0001589,2]
[334832337,1723605128953,-756.18,0.0001589,2]
[334832338,1723605128966,-500.0,0.0001589,2]
[334832339,1723605128979,-681.83,0.0001589,2]
[334832340,1723605128992,-1346.5,0.0001589,2]
[334832341,1723605129004,-1093.21,0.0001589,2]
[334832342,1723605129017,-1173.15,0.0001589,2]
[334832343,1723605129030,-1976.94,0.0001589,2]
[334832344,1723605129041,-675.4,0.0001589,2]
[334832345,1723605129053,-500.0,0.0001589,2]
[334832346,1723605129065,-500.0,0.0001589,2]
[334832347,1723605129076,-533.76,0.0001589,2]
[334832348,1723605129088,-817.86,0.0001589,2]
[334832349,1723605129105,-736.58,0.0001589,2]
[334832350,1723605129117,-1591.01,0.0001589,2]
[334832351,1723605129128,-500.0,0.0001589,2]
[334832352,1723605129141,-1823.18,0.0001589,2]
[334832353,1723605129153,-1560.86,0.0001589,2]
[334832354,1723605129164,-500.0,0.0001589,2]
[334832355,1723605129175,-500.0,0.0001589,2]
[334832356,1723605129186,-500.0,0.0001589,2]
[334832357,1723605129200,-703.88,0.0001589,2]
[334832358,1723605129224,-868.55,0.0001589,2]
[334832359,1723605129241,-549.74,0.0001589,2]
[334832360,1723605129252,-873.62,0.0001589,2]
[334832361,1723605129264,-500.0,0.0001589,2]
[334832362,1723605129276,-1218.76,0.0001589,2]
[334832363,1723605129288,-948.65,0.0001589,2]
[334832364,1723605129300,-530.56,0.0001589,2]
[334832365,1723605129313,-500.0,0.0001589,2]
[334832366,1723605129324,-1962.68,0.0001589,2]
[334832367,1723605129336,-3761.99,0.0001589,2]
[334832368,1723605129351,-1100.79,0.0001589,2]
[334832369,1723605129364,-1091.85,0.0001589,2]
[334832370,1723605129375,-519.9,0.0001589,2]
[334832371,1723605129391,-500.0,0.0001589,2]
[334832372,1723605129403,-500.0,0.0001589,2]
[334832373,1723605129416,-1899.15,0.0001589,2]
[334832374,1723605129429,-591.0,0.0001589,2]
[334832375,1723605129444,-2902.42,0.0001589,2]
[334832376,1723605129455,-681.58,0.0001589,2]
[334832377,1723605129468,-979.62,0.0001589,2]
[334832378,1723605129481,-756.88,0.0001589,2]
[334832379,1723605129492,-522.04,0.0001589,2]
[334832380,1723605129503,-1101.29,0.0001589,2]
[334832381,1723605129515,-500.0,0.0001589,2]
[334832382,1723605129528,-1108.67,0.0001589,2]
[334832383,1723605129540,-1192.85,0.0001589,2]
[334832384,1723605129552,-500.0,0.0001589,2]
[334832385,1723605129563,-1671.63,0.0001589,2]
[334832386,1723605129576,-4757.69,0.0001589,2]
[334832387,1723605129588,-738.15,0.0001589,2]
[334832388,1723605129599,-817.28,0.0001589,2]
[334832389,1723605129611,-500.0,0.0001589,2]
[334832390,1723605129623,-1634.26,0.0001589,2]
[334832391,1723605129635,-1376.93,0.0001589,2]
[334832392,1723605129647,-500.0,0.0001589,2]
[334832393,1723605129659,-1110.82,0.0001589,2]
[334832394,1723605129670,-500.0,0.0001589,2]
[334832395,1723605129682,-18059.26,0.0001589,2]
[334832396,1723605129694,-2339.81,0.0001589,2]
[334832397,1723605129706,-815.45,0.0001589,2]
[334832398,1723605129718,-1022.58,0.0001589,2]
[334832399,1723605129729,-779.0,0.0001589,2]
[334832400,1723605129741,-1739.76,0.0001589,2]
[334832401,1723605129752,-500.0,0.0001589,2]
[334832402,1723605129764,-716.15,0.0001589,2]
[334832403,1723605129776,-500.0,0.0001589,2]
[334832404,1723605129788,-824.5,0.0001589,2]
[334832405,1723605129800,-500.0,0.0001589,2]
[334832406,1723605129811,-611.72,0.0001589,2]
[334832407,1723605129823,-500.0,0.0001589,2]
[334832408,1723605129835,-564.02,0.0001589,2]
[334832409,1723605129847,-573.09,0.0001589,2]
[334832410,1723605129859,-1688.94,0.0001589,2]
[334832411,1723605129871,-500.0,0.0001589,2]
[334832412,1723605129885,-754.52,0.0001589,2]
[334832413,1723605129897,-500.0,0.0001589,2]
[334832414,1723605129909,-500.0,0.0001589,2]
[334832415,1723605129921,-2125.28,0.0001589,2]
[334832416,1723605129933,-862.91,0.0001589,2]
[334832417,1723605129945,-1627.71,0.0001589,2]
[334832418,1723605129956,-726.59,0.0001589,2]
[334832419,1723605129968,-5975.91,0.0001589,2]
[334832420,1723605129981,-500.0,0.0001589,2]
[334832421,1723605129993,-1414.92,0.0001589,2]
[334832422,1723605130005,-902.13,0.0001589,2]
[334832423,1723605130016,-592.73,0.0001589,2]
[334832424,1723605130028,-5374.81,0.0001589,2]
[334832425,1723605130041,-2088.05,0.0001589,2]
[334832426,1723605130053,-1387.45,0.0001589,2]
[334832427,1723605130065,-768.36,0.0001589,2]
[334832428,1723605130076,-3876.74,0.0001589,2]
[334832429,1723605130088,-500.0,0.0001589,2]
[334832430,1723605130100,-500.0,0.0001589,2]
[334832431,1723605130112,-1245.3,0.0001589,2]
[334832432,1723605130125,-618.4,0.0001589,2]
[334832433,1723605130138,-2815.43,0.0001589,2]
[334832434,1723605130150,-3826.76,0.0001589,2]
[334832435,1723605130162,-500.0,0.0001589,2]
[334832436,1723605130174,-807.19,0.0001589,2]
[334832437,1723605130187,-855.92,0.0001589,2]
[334832438,1723605130199,-2271.26,0.0001589,2]
[334832439,1723605130212,-7857.05,0.0001589,2]
[334832440,1723605130224,-1088.18,0.0001589,2]
[334832441,1723605130236,-500.0,0.0001589,2]
[334832442,1723605130248,-752.58,0.0001589,2]
[334832443,1723605130260,-500.0,0.0001589,2]
[334832444,1723605130273,-3025.79,0.0001589,2]
[334832445,1723605130285,-2164.19,0.0001589,2]
[334832446,1723605130297,-3869.55,0.0001589,2]
[334832447,1723605130309,-500.0,0.0001589,2]
[334832448,1723605130321,-892.24,0.0001589,2]
[334832449,1723605130333,-500.0,0.0001589,2]
[334832450,1723605130346,-662.61,0.0001589,2]
[334832451,1723605130362,-916.14,0.0001589,2]
[334832452,1723605130374,-795.16,0.0001589,2]
[334832453,1723605130388,-26609.07,0.0001589,2]
[334832454,1723605130400,-500.0,0.0001589,2]
[334832455,1723605130411,-3398.55,0.0001589,2]
[334832456,1723605130423,-22218.98,0.0001589,2]
[334832457,1723605130436,-2542.25,0.0001589,2]
[334832458,1723605130449,-1245.59,0.0001589,2]
[334832459,1723605130461,-1016.07,0.0001589,2]
[334832460,1723605130479,-500.0,0.0001589,2]
[334832461,1723605130492,-2255.75,0.0001589,2]
[334832462,1723605130505,-500.0,0.0001589,2]
[334832463,1723605130518,-242.5427009,0.0001589,2]
[334832464,1723605130531,-1410.58,0.0001589,2]
[334832465,1723605130544,-941.19,0.0001589,2]
[334832466,1723605130556,-500.0,0.0001589,2]
[334832467,1723605130569,-500.0,0.0001589,2]
[334832468,1723605130581,-500.0,0.0001589,2]
[334832469,1723605130594,-8200.38,0.0001589,2]
[334832470,1723605130607,-5134.83,0.0001589,2]
[334832471,1723605130619,-1475.56,0.0001589,2]
[334832472,1723605130631,-500.0,0.0001589,2]
[334832473,1723605130645,-1590.03,0.0001589,2]
[334832474,1723605130658,-500.0,0.0001589,2]
[334832475,1723605130670,-500.0,0.0001589,2]
[334832476,1723605130682,-2005.17,0.0001589,2]
[334832477,1723605130695,-500.16508444,0.0001589,2]
[334832478,1723605130708,-500.0,0.0001589,2]
[334832479,1723605130717,-500.0,0.0001589,2]
[334832480,1723605130728,-598.02,0.0001589,2]
[334832481,1723605130739,-12984.39,0.0001589,2]
[334832482,1723605130748,-7926.70629538,0.0001589,2]
[334832483,1723605132169,-150.42,0.00013688,2]
[334832484,1723605132179,-150.42,0.00013688,2]
[334832485,1723605132189,-150.42,0.00013688,2]
[334832486,1723605132199,-150.42,0.00013688,2]
[334832487,1723605132208,-150.42,0.00013688,2]
[334832488,1723605132218,-150.42,0.00013688,2]
[334832489,1723605132227,-564.76,0.00013698,2]
[334832490,1723605132236,-2783.6662446,0.00013698,2]
[334832491,1723605133541,-150.42,0.00013688,2]
[334832492,1723605133551,-150.42,0.00013688,2]
[334832493,1723605133561,-150.42,0.00013688,2]
[334832494,1723605133571,-150.42,0.00013688,2]
[334832495,1723605133581,-150.42,0.00013688,2]
[334832496,1723605133592,-150.42,0.00013688,2]
[334832497,1723605133601,-150.42,0.00013688,2]
[334832498,1723605133612,-150.42,0.00013688,2]
[334832499,1723605133624,-14.8,0.00013698,2]
[334832500,1723605134894,-150.42,0.00013688,2]
[334832501,1723605134904,-150.42,0.00013688,2]
[334832502,1723605134914,-150.42,0.00013688,2]
[334832503,1723605134923,-150.42,0.00013688,2]
[334832504,1723605134932,-150.42,0.00013688,2]
[334832505,1723605134942,-150.42,0.00013688,2]
[334832506,1723605134951,-150.42,0.00013688,2]
[334832507,1723605134961,-150.42,0.00013688,2]
[334832508,1723605134971,-150.42,0.00013688,2]
[334832509,1723605134980,-150.42,0.00013688,2]
[334832510,1723605134989,-150.42,0.00013688,2]
[334832511,1723605134999,-4.8237554,0.00013698,2]
[334832512,1723605135008,-500.0,0.00013698,2]
[334832513,1723605135018,-985.68,0.00013698,2]
[334832514,1723605135027,-6689.9,0.00013698,2]
[334832515,1723605135037,-564.76,0.00013972,2]
[334832516,1723605135047,-2803.29,0.00013972,2]
[334832517,1723605135056,-500.0,0.00013972,2]
[334832518,1723605135065,-985.68,0.00013972,2]
[334832519,1723605135075,-6689.9,0.00013972,2]
[334832520,1723605135085,-120.33137059,0.00014246,2]
[334832536,1723606231885,-200.7,0.00010546,2]
[334832537,1723606231897,-300.0,0.00010999,2]
[334832538,1723606231907,-539.68204211,0.00011,2]
[334832543,1723606232052,-857.30470671,0.00011,2]
[334832544,1723606232065,-6332.65296119,0.00011,2]
[334832545,1723606232077,-556.26670477,0.00011,2]
[334832546,1723606232216,-5687.24874688,0.00011,2]
[334832549,1723606238158,-19099.21,0.00011,2]
[334832550,1723606238170,-6057.23386798,0.00011,2]
[334832551,1723606238181,-16071.45571123,0.00011,2]
[334832552,1723606238193,-27604.04831325,0.00011,2]
[334832553,1723606238204,-22243.24876,0.00011,2]
[334832554,1723606238216,-463.4202856,0.00011,2]
[334832555,1723606238227,-4106.02685814,0.00011,2]
[334832556,1723606238243,-1185.14145906,0.00011,2]
[334832557,1723606238386,-9782.56,0.00011,2]
[334832558,1723606238398,-19078.5,0.00011,2]
[334832559,1723606238409,-705.84775833,0.00011,2]
[334832560,1723606238458,-252685.87818824,0.00011,2]
[334832561,1723606238468,-150.72,0.00011,2]
[334832562,1723606238477,-420.0,0.00012099,2]
[334832563,1723606238486,-250.0,0.0001227,2]
[334832564,1723606238495,-801.016,0.00012285,2]
[334832565,1723606238505,-247.0,0.00012285,2]
[334832566,1723606238514,-696.173,0.00012285,2]
[334832567,1723606238523,-573.357,0.00012285,2]
[334832568,1723606238532,-810.0,0.00012285,2]
[334832569,1723606238542,-711.32,0.0001229,2]
[334832570,1723606238551,-19016.0,0.00012368,2]
[334832571,1723606238560,-500.0,0.00012397,2]
[334832572,1723606238573,-2998.32,0.00012407,2]
[334832573,1723606238582,-150.08,0.00012456,2]
[334832574,1723606238592,-250.0,0.00012534,2]
[334832575,1723606238602,-456.0,0.00012602,2]
[334832576,1723606238611,-200.7,0.0001281,2]
[334832577,1723606238620,-183.72,0.00012915,2]
[334832578,1723606238630,-971.44,0.00012915,2]
[334832579,1723606238640,-1038.03929644,0.00012934,2]
[334832581,1723606238649,-179.92,0.00013122,2]
[334832583,1723606238659,-269.38361638,0.00013165,2]
[334832585,1723606238668,-544.0,0.00013479,2]
[334832587,1723606238678,-500.0,0.00013479,2]
[334832589,1723606238687,-174.21,0.00013545,2]
[334832590,1723606238697,-274.8809,0.00013598,2]
[334832591,1723606238707,-190.08,0.00013655,2]
[334832592,1723606238717,-500.0,0.00013698,2]
[334832593,1723606238727,-500.0,0.00013698,2]
[334832594,1723606238740,-500.0,0.00013698,2]
[334832595,1723606238749,-500.0,0.00013698,2]
[334832596,1723606238759,-1000.0,0.00013698,2]
[334832597,1723606238769,-500.0,0.00013698,2]
[334832598,1723606238780,-1095.06,0.00013698,2]
[334832599,1723606238790,-1320.5,0.00013698,2]
[334832600,1723606238802,-500.0,0.00013698,2]
[334832601,1723606238812,-1071.49,0.00013698,2]
[334832602,1723606238824,-500.0,0.00013698,2]
[334832603,1723606238835,-500.0,0.00013698,2]
[334832604,1723606238845,-500.0,0.00013698,2]
[334832605,1723606238855,-744.97,0.00013698,2]
[334832606,1723606238864,-500.0,0.00013698,2]
[334832607,1723606238874,-500.0,0.00013698,2]
[334832608,1723606238883,-500.0,0.00013698,2]
[334832609,1723606238893,-1591.04,0.00013698,2]
[334832610,1723606238902,-330.28,0.00013698,2]
[334832611,1723606238912,-500.0,0.00013698,2]
[334832612,1723606238924,-500.0,0.00013698,2]
[334832613,1723606238933,-500.0,0.00013698,2]
[334832614,1723606238943,-500.0,0.00013698,2]
[334832615,1723606238953,-500.0,0.00013698,2]
[334832616,1723606238964,-500.0,0.00013698,2]
[334832617,1723606238973,-500.0,0.00013698,2]
[334832618,1723606238982,-544.13,0.00013698,2]
[334832619,1723606238991,-500.0,0.00013698,2]
[334832620,1723606239001,-500.0,0.00013698,2]
[334832621,1723606239011,-500.0,0.00013698,2]
[334832622,1723606239020,-500.0,0.00013698,2]
[334832623,1723606239030,-500.0,0.00013698,2]
[334832624,1723606239039,-500.0,0.00013698,2]
[334832625,1723606239050,-458.56085258,0.00013698,2]
[334832626,1723606239059,-500.0,0.00013698,2]
[334832627,1723606239069,-500.0,0.00013698,2]
[334832628,1723606239078,-500.0,0.00013698,2]